fUSD/lending_fUSD_20240114
["ID","MTS","AMOUNT","RATE_DAILY","PERIOD"]
[311550305,1705218646746,-489.13744882,0.000346,4]
[311550306,1705218646756,-1756.50552638,0.00034601,7]
[311550307,1705218646765,-150.0,0.00034607,2]
[311550308,1705218646776,-180.0,0.00034658,2]
[311550309,1705218646786,-151.0,0.00034675,4]
[311550310,1705218646796,-254.34253846,0.00034681,2]
[311550311,1705218646808,-20440.39412982,0.000347,2]
[311550312,1705218646818,-177000.0,0.000347,2]
[311550313,1705218646829,-170.85071025,0.00034701,4]
[311550314,1705218646839,-153.84,0.00034703,2]
[311550315,1705218646849,-1018.58,0.00034703,2]
[311550316,1705218646860,-150.0,0.00034731,120]
[311550317,1705218646871,-1590.331197,0.00034767,2]
[311550318,1705218646883,-202.523349,0.00034794,7]
[311550319,1705218646892,-10111.430105,0.00034794,2]
[311550320,1705218646902,-77422.598955,0.00034794,2]
[311550321,1705218646912,-34710.23786659,0.000348,2]
[311550322,1705218646921,-768.141413,0.000348,2]
[311550323,1705218646931,-1000.0,0.00034835,7]
[311550324,1705218646941,-200.0,0.0003489,7]
[311550325,1705218646950,-200.0,0.0003489,7]
[311550326,1705218646959,-200.0,0.0003489,7]
[311550327,1705218646969,-150.0,0.00034896,2]
[311550328,1705218646980,-150.0,0.00034896,2]
[311550329,1705218646990,-161.608457,0.00034897,7]
[311550330,1705218647000,-161.608457,0.00034897,7]
[311550331,1705218647011,-29166.86660832,0.00034897,2]
[311550332,1705218647022,-150.0,0.00034899,2]
[311550333,1705218647032,-150.0,0.00034899,2]
[311550334,1705218647043,-8951.59256585,0.000349,4]
[311550335,1705218647052,-14886.57894287,0.000349,5]
[311550336,1705218647062,-849141.16072582,0.000349,4]
[311550337,1705218647603,-168.483444,0.000318,7]
[311550338,1705218647614,-168.483444,0.00034,7]
[311550339,1705218647625,-294.8540175,0.000349,4]
[311550340,1705218649892,-521.01908608,0.00027799,2]
[311550341,1705218649901,-168.483444,0.0003,7]
[311550342,1705218649911,-168.483444,0.000318,7]
[311550343,1705218649921,-168.483444,0.00034,7]
[311550344,1705218649931,-5229.93642612,0.000349,4]
[311550345,1705218649947,-1553.08931038,0.000349,4]
[311550346,1705218649963,-2867.71265018,0.000349,4]
[311550347,1705218650472,-419.57986073,0.00027798,2]
[311550348,1705218782315,8433.99912371,0.00021846,7]
[311550349,1705218794552,545.01758991,0.00021846,7]
[311550350,1705218810550,200.0,0.00021846,7]
[311550351,1705218810574,345.01758991,0.00021846,7]
[311550352,1705218830559,545.01758991,0.00021846,7]
[311550353,1705218843986,212.0,0.00021928,2]
[311550354,1705218846557,202.92279458,0.00021846,7]
[311550355,1705218849487,542.0,0.000278,30]
[311550356,1705218967771,254.99,0.0002183,2]
[311550357,1705219016390,-5329.76335956,0.00022256,2]
[311550358,1705219016415,-196.79653433,0.00022257,2]
[311550359,1705219016438,-11317.44010611,0.00022257,2]
[311550360,1705219038156,159.94,0.00022043,2]
[311550361,1705219061452,-233.03383861,0.00022252,2]
[311550362,1705219061475,-542.53324499,0.00022253,2]
[311550363,1705219061498,-411.4329164,0.00022253,2]
[311550364,1705219147479,195.45,0.00019821,2]
[311550365,1705219147667,195.45,0.00022085,2]
[311550366,1705219253345,158.16,0.00021885,2]
[311550367,1705219268693,164.79,0.00017392,2]
[311550368,1705219286197,2000.0,0.00021802,2]
[311550369,1705219390512,696.13,0.000221,2]
[311550370,1705219395486,237.99,0.00021673,2]
[311550371,1705219598142,175.9,0.00019816,2]
[311550372,1705219598341,175.9,0.0002208,2]
[311550373,1705219670267,150.0,0.00022,2]
[311550374,1705219674041,1000.0,0.00021781,2]
[311550376,1705219772771,159.64015465,0.00022097,2]
[311550390,1705219831638,-158.68234382,0.0002219,2]
[311550391,1705219831647,-211.54056267,0.0002219,2]
[311550393,1705219831657,-67.44305325,0.0002219,2]
[311550394,1705219831669,-350.35984628,0.0002219,2]
[311550396,1705219831679,-920.4457316,0.0002219,2]
[311550399,1705219831702,-459.2369133,0.0002219,2]
[311550401,1705219831714,-312.06068321,0.0002219,2]
[311550402,1705219831725,-16.27747735,0.0002219,2]
[311550404,1705219831734,-365.52102558,0.00022191,2]
[311550406,1705219831746,-677.69237988,0.00022191,2]
[311550408,1705219831755,-1402.63804763,0.00022191,2]
[311550409,1705219831766,-902.50560808,0.00022191,2]
[311550411,1705219831775,-521.01908608,0.00022192,2]
[311550412,1705219831784,-1040.28791122,0.00022193,2]
[311550413,1705219831793,-220.903327,0.00022194,2]
[311550414,1705219831802,-1279.97814524,0.00022194,2]
[311550415,1705219831814,-9268.54205799,0.00022194,2]
[311550417,1705219831823,-4484.49790015,0.00022195,2]
[311550419,1705219831833,-523.58449934,0.00022196,2]
[311550421,1705219831843,-300.0,0.00022198,2]
[311550423,1705219831853,-150.0,0.00022198,2]
[311550425,1705219831862,-378.35,0.00022262,2]
[311550427,1705219831872,-159.64015465,0.00022365,2]
[311550429,1705219831882,-378.35,0.0002238,2]
[311550431,1705219831891,-378.35,0.00022497,2]
[311550433,1705219831900,-159.94,0.00022504,2]
[311550435,1705219831910,-150.0,0.00022548,2]
[311550437,1705219831919,-265.67317437,0.00022596,2]
[311550439,1705219831928,-378.35,0.00022614,2]
[311550441,1705219831937,-159.64015465,0.00022632,2]
[311550443,1705219831946,-265.67317431,0.00022639,2]
[311550445,1705219831955,-237.99,0.00022651,2]
[311550447,1705219831964,-265.67317431,0.00022683,2]
[311550448,1705219831973,-232.187726,0.00022693,2]
[311550449,1705219831982,-693.5145823,0.00022693,2]
[311550451,1705219831991,-6891.79931798,0.00022693,2]
[311550453,1705219832004,-359.03835404,0.00022693,2]
[311550457,1705219832030,-256.64086076,0.00022693,2]
[311550459,1705219832042,-611.97438854,0.00022693,2]
[311550463,1705219832062,-4169.81095411,0.00022693,2]
[311550465,1705219832071,-197.4855056,0.00022694,2]
[311550467,1705219832080,-1322.75377847,0.00022694,2]
[311550469,1705219832090,-10670.61311938,0.00022694,2]
[311550471,1705219832098,-33761.99336204,0.00022695,2]
[311550473,1705219832110,-4461.02589026,0.00022695,2]
[311550475,1705219832121,-1713.03735611,0.00022695,2]
[311550477,1705219832132,-393.45872412,0.00022695,2]
[311550480,1705219832145,-10925.4521482,0.00022695,2]
[311550482,1705219832160,-788.83569736,0.00022695,2]
[311550494,1705219837701,-247956.19682191,0.00022695,2]
[311550495,1705219837712,-28325.46796059,0.00022696,2]
[311550496,1705219837722,-523.43271801,0.00022697,2]
[311550497,1705219837732,-27029.0152,0.000227,2]
[311550498,1705219837742,-265.67317431,0.00022726,2]
[311550499,1705219837752,-378.35,0.00022731,2]
[311550500,1705219837761,-282.47887265,0.0002275,2]
[311550501,1705219837770,-265.67317431,0.0002277,2]
[311550502,1705219837781,-265.67317431,0.00022813,2]
[311550503,1705219837790,-378.35,0.00022848,2]
[311550504,1705219837799,-265.67317431,0.00022857,2]
[311550505,1705219837808,-250.0,0.000229,2]
[311550506,1705219837819,-11385.00358875,0.000229,2]
[311550507,1705219837831,-1500.0,0.000229,2]
[311550508,1705219837840,-55555.0,0.000229,2]
[311550509,1705219837849,-265.67317431,0.000229,2]
[311550510,1705219837859,-397.57165907,0.000229,2]
[311550511,1705219837871,-432.88880383,0.000229,2]
[311550512,1705219837880,-159.64015465,0.000229,2]
[311550513,1705219837890,-980.14512476,0.000229,6]
[311550514,1705219837900,-159.94,0.00022964,2]
[311550515,1705219837910,-378.35,0.00022965,2]
[311550516,1705219837920,-4651.86755386,0.0002298,2]
[311550517,1705219837929,-166.28597973,0.00022988,2]
[311550518,1705219837939,-1432.8054114,0.00022996,2]
[311550519,1705219837950,-158.37077341,0.00022996,2]
[311550520,1705219837960,-219.97090241,0.00022996,2]
[311550521,1705219837969,-251.79771266,0.00022996,2]
[311550522,1705219837978,-1068.13433629,0.00022996,2]
[311550523,1705219837987,-198.926255,0.00022996,2]
[311550524,1705219837996,-157.03083023,0.00022996,2]
[311550525,1705219838006,-2895.90399733,0.00022996,2]
[311550526,1705219838015,-927.6972884,0.00022996,2]
[311550527,1705219838024,-155.0,0.00022996,2]
[311550528,1705219838033,-237.12856079,0.00022996,2]
[311550529,1705219838043,-523.86841998,0.00022996,2]
[311550530,1705219838052,-155.0,0.00022996,2]
[311550531,1705219838061,-1894.20509999,0.00022996,2]
[311550532,1705219838070,-163.63015791,0.00022996,2]
[311550533,1705219838080,-939.56400894,0.00022996,2]
[311550534,1705219838091,-200.01126006,0.00022996,2]
[311550535,1705219838102,-303.96492788,0.00022996,2]
[311550536,1705219838111,-279.80524737,0.00022996,2]
[311550537,1705219838121,-516.38375752,0.00022996,2]
[311550538,1705219838131,-250.02290447,0.00022996,2]
[311550539,1705219838142,-401.42100812,0.00022996,2]
[311550540,1705219838154,-516.09965465,0.00022996,2]
[311550541,1705219838164,-337.22386989,0.00022996,2]
[311550542,1705219838174,-336.7179586,0.00022996,2]
[311550543,1705219838183,-474.19741654,0.00022996,2]
[311550544,1705219838192,-284.22534118,0.00022996,2]
[311550545,1705219838201,-312.48567408,0.00022996,2]
[311550546,1705219838210,-765.16043303,0.00022996,2]
[311550547,1705219838218,-161.44781603,0.00022996,2]
[311550548,1705219838228,-757.38163137,0.00022996,2]
[311550549,1705219838237,-260.84497991,0.00022996,2]
[311550550,1705219838246,-316.7261477,0.00022996,2]
[311550551,1705219838256,-162.59683057,0.00022996,2]
[311550552,1705219838265,-2616.11953545,0.00022997,2]
[311550553,1705219838274,-2136.08960768,0.00022997,2]
[311550554,1705219838283,-1134.78992634,0.00022998,2]
[311550555,1705219838292,-530.62921059,0.00022998,2]
[311550556,1705219838301,-376.11195413,0.00022998,2]
[311550557,1705219838311,-3849.91637634,0.00022998,2]
[311550558,1705219838320,-258440.36106673,0.00022998,2]
[311550559,1705219838329,-155.83972693,0.00022998,2]
[311550560,1705219838339,-345.00144344,0.00022998,2]
[311550561,1705219838348,-202.94800345,0.00022998,2]
[311550562,1705219838358,-155.28747022,0.00022998,2]
[311550563,1705219838368,-284.51783822,0.00022998,2]
[311550564,1705219838377,-650.39761678,0.00022998,2]
[311550565,1705219838387,-156.72752715,0.00022998,2]
[311550566,1705219838396,-360.96980876,0.00022998,2]
[311550567,1705219838406,-3927.97706849,0.00022998,2]
[311550568,1705219838415,-386.25060104,0.00022998,2]
[311550569,1705219838424,-158.36958229,0.00022998,2]
[311550570,1705219838434,-155.40816434,0.00022998,2]
[311550571,1705219838443,-435.75894809,0.00022998,2]
[311550572,1705219838452,-2942.76782523,0.00022998,2]
[311550573,1705219838461,-156.01597444,0.00022998,2]
[311550574,1705219838471,-531.80647171,0.00022998,2]
[311550575,1705219838480,-4324.48153211,0.00022998,2]
[311550576,1705219838488,-235.04520878,0.00022998,2]
[311550577,1705219838498,-217.23658877,0.00022998,2]
[311550578,1705219838507,-10865.41962906,0.00022998,2]
[311550579,1705219838516,-242.15573671,0.00022998,2]
[311550580,1705219838525,-200.49192303,0.00022998,2]
[311550581,1705219838534,-150.0,0.00022999,2]
[311550582,1705219838543,-150.0,0.00022999,2]
[311550583,1705219838552,-150.0,0.00022999,2]
[311550584,1705219838561,-150.0,0.00022999,2]
[311550585,1705219838570,-150.0,0.00022999,2]
[311550586,1705219838579,-150.0,0.00022999,2]
[311550587,1705219838589,-150.0,0.00022999,2]
[311550588,1705219838598,-150.0,0.00022999,2]
[311550589,1705219838608,-150.0,0.00022999,2]
[311550590,1705219838617,-150.0,0.00022999,2]
[311550591,1705219838626,-150.0,0.00022999,2]
[311550592,1705219838635,-150.0,0.00022999,2]
[311550593,1705219838645,-150.0,0.00022999,2]
[311550594,1705219838655,-150.0,0.00022999,2]
[311550595,1705219838664,-150.0,0.00022999,2]
[311550596,1705219838673,-150.0,0.00022999,2]
[311550597,1705219838682,-150.0,0.00022999,2]
[311550598,1705219838692,-150.0,0.00022999,2]
[311550599,1705219838702,-215829.84255087,0.00023,2]
[311550600,1705219838711,-1939345.47277191,0.00023,2]
[311550601,1705219838724,-60924.72969253,0.00023,2]
[311550602,1705219838754,-1480118.72524076,0.00023,2]
[311550603,1705219838767,-1366.72782337,0.00023,2]
[311550604,1705219838778,-8778.19024491,0.00023,2]
[311550605,1705219838793,-255.1,0.00023,2]
[311550606,1705219838804,-1108.41729066,0.00023,2]
[311550607,1705219838816,-541.66227835,0.00023,2]
[311550608,1705219838832,-361.05629825,0.00023,2]
[311550609,1705219838843,-951.26132272,0.00023,2]
[311550610,1705219838854,-455.23866117,0.00023,2]
[311550611,1705219838865,-343.81017987,0.00023,2]
[311550638,1705219840112,-640.041,0.00023,2]
[311550641,1705219840169,-330.0,0.00023,2]
[311550642,1705219840180,-324.83345453,0.00023,2]
[311550643,1705219840285,-495.56335415,0.00023,2]
[311550644,1705219840297,-410.04619324,0.00023,2]
[311550645,1705219840308,-1347.46576508,0.00023,2]
[311550646,1705219840324,-750.81544023,0.00023,2]
[311550647,1705219840896,-206130.6069971,0.00023,2]
[311550648,1705219841009,-983.82216087,0.00023,2]
[311550649,1705219841021,-1346.31370766,0.00023,2]
[311550650,1705219841033,-509.73860691,0.00023,2]
[311550651,1705219841048,-649.02,0.00023,2]
[311550652,1705219841062,-831.8685269,0.00023,2]
[311550666,1705219842553,-717.14339935,0.00023,2]
[311550667,1705219842565,-409.79455518,0.00023,2]
[311550669,1705219842577,-911.38907164,0.00023,2]
[311550670,1705219842590,-1367.80188262,0.00023,2]
[311550671,1705219842612,-266.43816103,0.00023,2]
[311550672,1705219842624,-5138.84513729,0.00023,2]
[311550673,1705219842635,-2137.2968041,0.00023,2]
[311550674,1705219842646,-5177.05066905,0.00023,2]
[311550675,1705219842661,-3069.63889084,0.00023,2]
[311550676,1705219842673,-11954.84573501,0.00023,2]
[311550678,1705219842684,-541.88479081,0.00023,2]
[311550679,1705219842695,-5512.38230237,0.00023,2]
[311550681,1705219842722,-1192.9975616,0.00023,2]
[311550682,1705219842734,-405.00113522,0.00023,2]
[311550683,1705219842745,-1087.76376573,0.00023,2]
[311550684,1705219842810,-14.26644857,0.00023,2]
[311550685,1705219842826,-255.10613845,0.00023,2]
[311550686,1705219842841,-7263.01490479,0.00023,2]
[311550687,1705219842853,-3414.18361475,0.00023,2]
[311550688,1705219842864,-3811.06024139,0.00023,2]
[311550689,1705219842880,-569.85819587,0.00023,2]
[311550690,1705219842893,-8328.20316958,0.00023,2]
[311550691,1705219842905,-7973.9466717,0.00023,2]
[311550692,1705219842917,-3785.78396609,0.00023,2]
[311550693,1705219842940,-1588.94284284,0.00023,2]
[311550694,1705219842952,-201656.64557057,0.00023,2]
[311550705,1705219845664,-182.48044098,0.00022998,2]
[311550706,1705219845673,-553.71693618,0.00022999,2]
[311550708,1705219845721,-508.14622945,0.00022998,2]
[311550709,1705219845730,-87.72528202,0.00022999,2]
[311550710,1705219845780,-399.93525315,0.00022999,2]
[311550711,1705219845789,-4103.15428152,0.00022999,2]
[311550712,1705219845798,-521.01908608,0.00022999,2]
[311550713,1705219845807,-168.8380601,0.00022999,2]
[311550714,1705219845816,-2428.36510386,0.00023,2]
[311550715,1705219845827,-2917.07191089,0.00023,2]
[311550716,1705219845838,-652.38094598,0.00023,2]
[311550717,1705219845951,-411.21732355,0.00023,2]
[311550718,1705219845963,-1467.87505136,0.00023,2]
[311550726,1705220047178,174.45,0.00020186,2]
[311550737,1705220113387,200.0,0.00021969,2]
[311550743,1705220232992,205.59,0.00022043,2]
[311550747,1705220364431,1507.62907404,0.00021413,2]
[311550748,1705220379186,206.25,0.00021827,2]
[311550749,1705220483014,165.72,0.0001981,2]
[311550750,1705220483236,165.72,0.00022074,2]
[311550751,1705220506087,200.0,0.00021701,2]
[311550752,1705220548146,840.0,0.00021653,2]
[311550753,1705220556311,2966.995,0.00022028,2]
[311550754,1705220644158,212.0,0.00021687,2]
[311550755,1705220691802,2000.0,0.0002161,2]
[311550756,1705220800310,3186.46864652,0.00021422,2]
[311550757,1705220807439,559.88627078,0.0001986,2]
[311550758,1705220808308,2472.30301271,0.00021645,2]
[311550759,1705220813869,446.92630179,0.0001986,2]
[311550760,1705220820325,360.39878748,0.00017852,2]
[311550761,1705220847683,500.0,0.00021599,2]
[311550762,1705220868014,154.63,0.0002171,2]
[311550763,1705220876337,192.5,0.00021573,2]
[311550764,1705220879626,446.92630179,0.0001986,2]
[311550765,1705220888640,150.0,0.00022,2]
[311550766,1705220903295,306236.0,0.00021709,2]
[311550772,1705220921443,164.48,0.00019709,2]
[311550773,1705220921820,164.48,0.00021972,2]
[311550779,1705220962115,4166.64,0.00021598,2]
[311550785,1705220981193,1000.0,0.00022104,22]
[311550786,1705220985675,328.0,0.00021625,2]
[311550788,1705221001619,300.0,0.000221,2]
[311550789,1705221001962,150.0,0.000221,2]
[311550790,1705221006089,516.05068541,0.00022099,2]
[311550791,1705221019904,521.01908608,0.00022099,2]
[311550793,1705221021877,528.92568083,0.00022099,2]
[311550819,1705221031739,-150.0,0.000221,2]
[311550821,1705221031749,-793.99514713,0.000221,2]
[311550823,1705221031761,-246.29276409,0.000221,2]
[311550825,1705221031771,-207.22834517,0.000221,2]
[311550830,1705221031803,-1936.76104588,0.000221,2]
[311550832,1705221031813,-763.2792291,0.00022101,2]
[311550834,1705221031822,-763.2792291,0.00022101,2]
[311550836,1705221031832,-2731.54946595,0.0002213,2]
[311550838,1705221031844,-350.0,0.0002213,2]
[311550840,1705221031855,-1125.50841256,0.0002213,2]
[311550843,1705221031871,-391.6535916,0.0002213,2]
[311550844,1705221031915,-1072.23521638,0.0002213,2]
[311550845,1705221031926,-965.17012946,0.0002213,2]
[311550846,1705221031980,-2224.53765689,0.0002213,2]
[311550847,1705221031992,-11965.01257662,0.0002213,2]
[311550848,1705221032002,-1250.96,0.00022217,2]
[311550849,1705221032011,-154.63,0.00022276,2]
[311550850,1705221032021,-300.0,0.000223,8]
[311550851,1705221032030,-280.79430241,0.00022315,2]
[311550852,1705221032040,-600.0,0.000224,8]
[311550853,1705221032049,-219.14864303,0.00022404,3]
[311550854,1705221032059,-161.78283669,0.00022406,3]
[311550855,1705221032069,-8750.8092371,0.00022442,2]
[311550856,1705221032081,-661.68277074,0.00022442,2]
[311550857,1705221032097,-500.61671431,0.00022442,2]
[311550858,1705221032113,-2143.19277785,0.00022442,2]
[311550859,1705221032126,-500.0,0.00022442,2]
[311550860,1705221032137,-483.72855263,0.00022442,2]
[311550861,1705221032153,-377.44344737,0.00022442,2]
[311550862,1705221032163,-150.0,0.0002248,2]
[311550863,1705221032172,-153.67881354,0.000225,2]
[311550864,1705221032181,-369.58184601,0.000225,2]
[311550865,1705221032191,-900.0,0.000225,8]
[311550866,1705221032201,-491.54892398,0.0002254,2]
[311550867,1705221032262,-2832.97820078,0.0002254,2]
[311550868,1705221032271,-161.08188411,0.0002254,2]
[311550869,1705221032280,-7600.27237397,0.0002254,2]
[311550870,1705221032290,-234.85086633,0.0002254,2]
[311550871,1705221032299,-376.11195413,0.0002254,2]
[311550872,1705221032308,-155.43681351,0.0002254,2]
[311550873,1705221032318,-1134.78992634,0.0002254,2]
[311550874,1705221032327,-6429.59170343,0.0002254,2]
[311550875,1705221032337,-3849.91637634,0.0002254,2]
[311550876,1705221032346,-2136.08960768,0.0002254,2]
[311550877,1705221032355,-516.38375752,0.0002254,2]
[311550878,1705221032364,-523.86841998,0.0002254,2]
[311550879,1705221032377,-474.19741654,0.0002254,2]
[311550880,1705221032386,-158.37077341,0.0002254,2]
[311550881,1705221032395,-939.56400894,0.0002254,2]
[311550882,1705221032405,-303.96492788,0.0002254,2]
[311550883,1705221032414,-155.0,0.0002254,2]
[311550884,1705221032424,-163.63015791,0.0002254,2]
[311550885,1705221032433,-219.97090241,0.0002254,2]
[311550886,1705221032442,-279.80524737,0.0002254,2]
[311550887,1705221032452,-336.7179586,0.0002254,2]
[311550888,1705221032461,-316.7261477,0.0002254,2]
[311550889,1705221032471,-2616.11953545,0.0002254,2]
[311550890,1705221032480,-1068.13433629,0.0002254,2]
[311550891,1705221032489,-401.42100812,0.0002254,2]
[311550892,1705221032498,-237.12856079,0.0002254,2]
[311550893,1705221032507,-312.48567408,0.0002254,2]
[311550894,1705221032516,-155.0,0.0002254,2]
[311550895,1705221032525,-2895.90399733,0.0002254,2]
[311550896,1705221032534,-757.38163137,0.0002254,2]
[311550897,1705221032544,-161.44781603,0.0002254,2]
[311550898,1705221032554,-250.02290447,0.0002254,2]
[311550899,1705221032564,-1432.8054114,0.0002254,2]
[311550900,1705221032573,-4.45492104,0.0002254,2]
[311550901,1705221037857,-923.24236736,0.0002254,2]
[311550902,1705221037867,-162.59683057,0.0002254,2]
[311550903,1705221037876,-337.22386989,0.0002254,2]
[311550904,1705221037887,-284.22534118,0.0002254,2]
[311550905,1705221037896,-157.03083023,0.0002254,2]
[311550906,1705221037905,-260.84497991,0.0002254,2]
[311550907,1705221037915,-516.09965465,0.0002254,2]
[311550908,1705221037924,-198.926255,0.0002254,2]
[311550909,1705221037937,-1894.20509999,0.0002254,2]
[311550910,1705221037949,-765.16043303,0.0002254,2]
[311550911,1705221037970,-200.01126006,0.0002254,2]
[311550912,1705221038003,-492.96840584,0.00022541,2]
[311550913,1705221038037,-150.0,0.00022548,2]
[311550914,1705221038072,-192.5,0.00022552,2]
[311550915,1705221038103,-530.27421111,0.00022598,2]
[311550916,1705221038113,-521.01908608,0.00022598,2]
[311550917,1705221038123,-516.05068541,0.00022599,2]
[311550918,1705221038134,-258440.36106673,0.000226,2]
[311550919,1705221038144,-1200.0,0.000226,8]
[311550920,1705221038154,-188.88739538,0.000227,3]
[311550921,1705221038163,-1600.0,0.000227,8]
[311550922,1705221038173,-158.36958229,0.00022768,2]
[311550923,1705221038183,-386.25060104,0.00022768,2]
[311550924,1705221038193,-155.40816434,0.00022768,2]
[311550925,1705221038202,-156.72752715,0.00022768,2]
[311550926,1705221038212,-3927.97706849,0.00022768,2]
[311550927,1705221038221,-360.96980876,0.00022768,2]
[311550928,1705221038231,-650.39761678,0.00022768,2]
[311550929,1705221038240,-284.51783822,0.00022768,2]
[311550930,1705221038250,-155.83972693,0.00022768,2]
[311550931,1705221038540,-155.28747022,0.00022768,2]
[311550932,1705221038550,-202.94800345,0.00022768,2]
[311550933,1705221038559,-345.00144344,0.00022768,2]
[311550934,1705221038568,-435.75894809,0.00022769,2]
[311550935,1705221038578,-2942.76782523,0.00022769,2]
[311550936,1705221038587,-153.67881354,0.00022784,2]
[311550937,1705221038596,-300.0,0.000228,8]
[311550938,1705221038605,-154.63,0.00022842,2]
[311550939,1705221038614,-250.0,0.000229,2]
[311550940,1705221038623,-665.66358228,0.000229,2]
[311550941,1705221038634,-300.0,0.000229,8]
[311550942,1705221038643,-166.28597973,0.0002299,2]
[311550943,1705221038654,-213.88151203,0.00022997,2]
[311550944,1705221038664,-161.35063331,0.00022997,2]
[311550945,1705221038673,-200.49192303,0.00022997,2]
[311550946,1705221038683,-242.15573671,0.00022997,2]
[311550947,1705221038692,-235.04520878,0.00022997,2]
[311550948,1705221038702,-217.23658877,0.00022997,2]
[311550949,1705221038711,-531.80647171,0.00022997,2]
[311550950,1705221038721,-4324.48153211,0.00022997,2]
[311550951,1705221038730,-156.01597444,0.00022997,2]
[311550952,1705221038740,-504.49087949,0.00022998,2]
[311550953,1705221038750,-179.60156692,0.00022999,2]
[311550954,1705221038760,-96309.64851546,0.00022999,2]
[311550955,1705221038769,-8599.08811259,0.00022999,2]
[311550956,1705221038779,-150.0,0.00022999,2]
[311550957,1705221038788,-150.0,0.00022999,2]
[311550958,1705221038798,-150.0,0.00022999,2]
[311550959,1705221038807,-150.0,0.00022999,2]
[311550960,1705221038817,-150.0,0.00022999,2]
[311550961,1705221038830,-150.0,0.00022999,2]
[311550962,1705221038840,-150.0,0.00022999,2]
[311550963,1705221038849,-150.0,0.00022999,2]
[311550964,1705221038859,-150.0,0.00022999,2]
[311550965,1705221038868,-150.0,0.00022999,2]
[311550966,1705221038879,-257128.38766218,0.00023,2]
[311550967,1705221038889,-1819888.45419259,0.00023,2]
[311550968,1705221038915,-2546.38577049,0.00023,2]
[311550969,1705221038938,-1403.83526351,0.00023,2]
[311550970,1705221038950,-11889.09322495,0.00023,2]
[311550971,1705221038962,-3018.19296304,0.00023,2]
[311550972,1705221039015,-381.7775019,0.00023,2]
[311550973,1705221039027,-446.04655466,0.00023,2]
[311551151,1705221043785,-6691.0055928,0.00023,2]
[311551152,1705221043800,-10618.63713902,0.00023,2]
[311551153,1705221043901,-4545.69770526,0.00023,2]
[311551154,1705221043917,-6760.01715554,0.00023,2]
[311551155,1705221043929,-448.88261105,0.00023,2]
[311551156,1705221043945,-67017.75046869,0.00023,2]
[311551157,1705221043958,-18143.57553755,0.00023,2]
[311551158,1705221043969,-36070.22378644,0.00023,2]
[311551159,1705221043997,-25467.4522034,0.00023,2]
[311551161,1705221045943,-161.9690947,0.000229,2]
[311551162,1705221045953,-105.30333768,0.00023,2]
[311551163,1705221045964,-2554.9731492,0.00023,2]
[311551164,1705221045978,-8521.284391,0.00023,2]
[311551165,1705221046111,-6021.5,0.00023,2]
[311551169,1705221085307,287.98726842,0.00020698,5]
[311551171,1705221121692,49712.01273158,0.000225,2]
[311551211,1705221346148,272.6,0.00022065,2]
[311551212,1705221375599,188.19,0.00022059,2]
[311551224,1705221441417,737.6,0.00021999,2]
[311551225,1705221455202,177.15,0.00020039,2]
[311551272,1705221644612,365.08,0.00021878,2]
[311551293,1705221665161,23880.0,0.00021866,2]
[311551306,1705221740117,156.33,0.0002206,2]
[311551307,1705221792013,925.75,0.00021915,2]
[311551308,1705221935206,409.92,0.00021884,2]
[311551310,1705222012247,194.14,0.0002191,2]
[311551312,1705222041992,182.31,0.0002006,2]
[311551314,1705222105178,150.0,0.00022,2]
[311551337,1705222177179,153.44,0.00022078,2]
[311551364,1705222232380,-521.01908608,0.00022138,2]
[311551366,1705222232390,-1040.28791122,0.00022139,2]
[311551368,1705222232399,-2555.82757494,0.000222,2]
[311551370,1705222232408,-155.62734564,0.00022224,2]
[311551373,1705222232417,-182.31,0.00022324,2]
[311551376,1705222232426,-150.0,0.00022358,2]
[311551378,1705222232435,-9413.12633065,0.00022359,2]